fUST/lending_fUST_20240902
["ID","MTS","AMOUNT","RATE_DAILY","PERIOD"]
[336903827,1725238253940,-675.88,0.00025205,2]
[336903829,1725238253950,-500.0,0.00025205,2]
[336903831,1725238253960,-500.0,0.00025205,2]
[336903834,1725238253970,-1063.58,0.00025205,2]
[336903836,1725238253981,-1013.87,0.00025205,2]
[336903838,1725238253990,-500.0,0.00025205,2]
[336903840,1725238254001,-500.0,0.00025205,2]
[336903842,1725238254010,-500.0,0.00025205,2]
[336903844,1725238254019,-500.0,0.00025205,2]
[336903846,1725238254029,-500.0,0.00025205,2]
[336903848,1725238254039,-500.0,0.00025205,2]
[336903850,1725238254049,-500.0,0.00025205,2]
[336903852,1725238254059,-500.0,0.00025205,2]
[336903854,1725238254069,-500.0,0.00025205,2]
[336903856,1725238254078,-500.0,0.00025205,2]
[336903857,1725238254087,-500.0,0.00025205,2]
[336903859,1725238254097,-500.0,0.00025205,2]
[336903861,1725238254106,-500.0,0.00025205,2]
[336903863,1725238254116,-500.0,0.00025205,2]
[336903865,1725238254125,-500.0,0.00025205,2]
[336903867,1725238254135,-816.84,0.00025205,2]
[336903869,1725238254144,-592.12,0.00025205,2]
[336903871,1725238254154,-500.0,0.00025205,2]
[336903873,1725238254163,-500.0,0.00025205,2]
[336903875,1725238254173,-500.0,0.00025205,2]
[336903877,1725238254182,-500.0,0.00025205,2]
[336903879,1725238254192,-838.77,0.00025205,2]
[336903881,1725238254201,-500.0,0.00025205,2]
[336903882,1725238254210,-500.0,0.00025205,2]
[336903884,1725238254219,-500.0,0.00025205,2]
[336903886,1725238254230,-785.94,0.00025205,2]
[336903888,1725238254239,-214.56284989,0.00025205,2]
[336903890,1725238254249,-500.0,0.00025205,2]
[336903892,1725238254258,-1768.12,0.00025205,2]
[336903894,1725238254267,-500.0,0.00025205,2]
[336903896,1725238254276,-500.0,0.00025205,2]
[336903898,1725238254286,-536.96617675,0.00025205,2]
[336903900,1725238254296,-500.0,0.00025205,2]
[336903902,1725238254305,-2282.25,0.00025205,2]
[336903904,1725238254315,-500.0,0.00025205,2]
[336903906,1725238254324,-500.0,0.00025205,2]
[336903908,1725238254333,-306.81856574,0.00025205,2]
[336903910,1725238254343,-500.0,0.00025205,2]
[336903912,1725238254352,-730.25,0.00025205,2]
[336903914,1725238254362,-500.0,0.00025205,2]
[336903916,1725238254371,-2059.63,0.00025205,2]
[336903918,1725238254381,-500.0,0.00025205,2]
[336903920,1725238254390,-500.0,0.00025205,2]
[336903922,1725238254399,-500.0,0.00025205,2]
[336903924,1725238254408,-500.0,0.00025205,2]
[336903926,1725238254417,-2371.27,0.00025205,2]
[336903928,1725238254427,-604.26,0.00025205,2]
[336903930,1725238254437,-491.00930412,0.00025205,2]
[336903932,1725238254446,-500.0,0.00025205,2]
[336903934,1725238254456,-500.0,0.00025205,2]
[336903935,1725238254465,-500.0,0.00025205,2]
[336903938,1725238254475,-500.0,0.00025205,2]
[336903939,1725238254486,-500.0,0.00025205,2]
[336903941,1725238254495,-500.0,0.00025205,2]
[336903944,1725238254505,-500.0,0.00025205,2]
[336903946,1725238254515,-500.0,0.00025205,2]
[336903948,1725238254524,-500.0,0.00025205,2]
[336903950,1725238254533,-500.0,0.00025205,2]
[336903951,1725238254542,-500.0,0.00025205,2]
[336903953,1725238254552,-500.0,0.00025205,2]
[336903955,1725238254561,-2564.05,0.00025205,2]
[336903957,1725238254571,-1129.63,0.00025205,2]
[336903959,1725238254580,-917.22,0.00025205,2]
[336903961,1725238254589,-601.33,0.00025205,2]
[336903963,1725238254599,-500.0,0.00025205,2]
[336903965,1725238254608,-575.98,0.00025205,2]
[336903968,1725238254623,-13436.3,0.00025205,2]
[336903970,1725238254632,-2266.01,0.00025205,2]
[336903972,1725238254642,-717.59,0.00025205,2]
[336903974,1725238254651,-500.0,0.00025205,2]
[336903976,1725238254660,-500.0,0.00025205,2]
[336903978,1725238254671,-1803.93,0.00025205,2]
[336903979,1725238254680,-500.0,0.00025205,2]
[336903981,1725238254690,-500.0,0.00025205,2]
[336903983,1725238254699,-532.51,0.00025205,2]
[336903986,1725238254710,-500.0,0.00025205,2]
[336903988,1725238254719,-897.36,0.00025205,2]
[336903989,1725238254728,-1380.55,0.00025205,2]
[336903991,1725238254738,-500.0,0.00025205,2]
[336903994,1725238254747,-500.0,0.00025205,2]
[336903995,1725238254756,-500.0,0.00025205,2]
[336903997,1725238254766,-500.0,0.00025205,2]
[336903999,1725238254775,-2325.73,0.00025205,2]
[336904001,1725238254784,-500.0,0.00025205,2]
[336904003,1725238254792,-2938.96,0.00025205,2]
[336904005,1725238254802,-500.0,0.00025205,2]
[336904007,1725238254811,-652.85,0.00025205,2]
[336904009,1725238254820,-3202.95,0.00025205,2]
[336904011,1725238254829,-1709.78,0.00025205,2]
[336904013,1725238254838,-500.0,0.00025205,2]
[336904015,1725238254847,-500.0,0.00025205,2]
[336904017,1725238254857,-500.0,0.00025205,2]
[336904019,1725238254866,-638.76,0.00025205,2]
[336904021,1725238254875,-580.91,0.00025205,2]
[336904023,1725238254885,-500.0,0.00025205,2]
[336904025,1725238254894,-713.05,0.00025205,2]
[336904027,1725238254903,-500.0,0.00025205,2]
[336904029,1725238254913,-572.74,0.00025205,2]
[336904031,1725238254922,-500.0,0.00025205,2]
[336904033,1725238254931,-528.95,0.00025205,2]
[336904035,1725238254941,-2509.91,0.00025205,2]
[336904037,1725238254950,-500.0,0.00025205,2]
[336904039,1725238254959,-500.0,0.00025205,2]
[336904041,1725238254968,-500.0,0.00025205,2]
[336904043,1725238254977,-846.84,0.00025205,2]
[336904045,1725238254987,-500.0,0.00025205,2]
[336904047,1725238254996,-500.0,0.00025205,2]
[336904049,1725238255006,-1606.1,0.00025205,2]
[336904051,1725238255015,-642.94,0.00025205,2]
[336904053,1725238255024,-500.0,0.00025205,2]
[336904055,1725238255033,-2466.51,0.00025205,2]
[336904057,1725238255042,-500.0,0.00025205,2]
[336904059,1725238255051,-842.8,0.00025205,2]
[336904061,1725238255061,-1550.87,0.00025205,2]
[336904063,1725238255070,-1689.39,0.00025205,2]
[336904065,1725238255079,-500.0,0.00025205,2]
[336904067,1725238255088,-500.0,0.00025205,2]
[336904069,1725238255098,-500.0,0.00025205,2]
[336904071,1725238255108,-500.0,0.00025205,2]
[336904073,1725238255117,-500.0,0.00025205,2]
[336904075,1725238255127,-500.0,0.00025205,2]
[336904077,1725238255136,-500.0,0.00025205,2]
[336904079,1725238255145,-500.0,0.00025205,2]
[336904081,1725238255154,-1936.04,0.00025205,2]
[336904083,1725238255163,-1079.11,0.00025205,2]
[336904085,1725238255173,-500.0,0.00025205,2]
[336904087,1725238255182,-500.0,0.00025205,2]
[336904089,1725238255191,-500.0,0.00025205,2]
[336904091,1725238255201,-811.75,0.00025205,2]
[336904093,1725238255210,-1182.99,0.00025205,2]
[336904094,1725238255219,-525.64337703,0.00025205,2]
[336904096,1725238255229,-2805.56,0.00025205,2]
[336904098,1725238255239,-500.0,0.00025205,2]
[336904100,1725238255248,-500.0,0.00025205,2]
[336904103,1725238255259,-1437.33,0.00025205,2]
[336904105,1725238255269,-500.0,0.00025205,2]
[336904107,1725238255279,-1817.11,0.00025205,2]
[336904109,1725238255288,-743.93,0.00025205,2]
[336904111,1725238255297,-500.0,0.00025205,2]
[336904113,1725238255307,-500.0,0.00025205,2]
[336904115,1725238255316,-500.0,0.00025205,2]
[336904117,1725238255325,-1704.63,0.00025205,2]
[336904119,1725238255335,-500.0,0.00025205,2]
[336904121,1725238255345,-500.0,0.00025205,2]
[336904123,1725238255354,-848.73,0.00025205,2]
[336904124,1725238255363,-500.0,0.00025205,2]
[336904126,1725238255373,-500.0,0.00025205,2]
[336904128,1725238255382,-500.0,0.00025205,2]
[336904130,1725238255392,-500.0,0.00025205,2]
[336904132,1725238255401,-500.0,0.00025205,2]
[336904134,1725238255411,-249.29684256,0.00025205,2]
[336904136,1725238255420,-500.0,0.00025205,2]
[336904138,1725238255430,-1118.0,0.00025205,2]
[336904140,1725238255439,-500.0,0.00025205,2]
[336904142,1725238255449,-500.0,0.00025205,2]
[336904144,1725238255458,-500.0,0.00025205,2]
[336904146,1725238255468,-1145.49,0.00025205,2]
[336904148,1725238255478,-1865.03,0.00025205,2]
[336904150,1725238255494,-500.0,0.00025205,2]
[336904152,1725238255503,-500.0,0.00025205,2]
[336904154,1725238255513,-812.2,0.00025205,2]
[336904156,1725238255522,-500.0,0.00025205,2]
[336904158,1725238255532,-1151.26,0.00025205,2]
[336904160,1725238255541,-500.0,0.00025205,2]
[336904162,1725238255550,-1652.16,0.00025205,2]
[336904164,1725238255560,-8806.6,0.00025205,2]
[336904166,1725238255569,-667.96,0.00025205,2]
[336904168,1725238255578,-516.83,0.00025205,2]
[336904170,1725238255588,-500.0,0.00025205,2]
[336904172,1725238255597,-500.0,0.00025205,2]
[336904174,1725238255606,-501.9532307,0.00025205,2]
[336904176,1725238255618,-1622.55,0.00025205,2]
[336904178,1725238255627,-500.0,0.00025205,2]
[336904179,1725238255636,-895.84,0.00025205,2]
[336904181,1725238255645,-1244.42,0.00025205,2]
[336904183,1725238255656,-850.95,0.00025205,2]
[336904185,1725238255665,-500.0,0.00025205,2]
[336904187,1725238255674,-500.0,0.00025205,2]
[336904189,1725238255684,-1916.37,0.00025205,2]
[336904191,1725238255694,-531.4484865,0.00025205,2]
[336904193,1725238255703,-509.6084453,0.00025205,2]
[336904195,1725238255712,-1975.67,0.00025205,2]
[336904196,1725238255721,-175.820974,0.00025205,7]
[336904198,1725238255731,-1311.9,0.00025205,2]
[336904200,1725238255740,-175.820974,0.00025205,7]
[336904202,1725238255750,-500.0,0.00025205,2]
[336904204,1725238255759,-5717.61,0.00025205,2]
[336904206,1725238255768,-1069.38,0.00025205,2]
[336904208,1725238255778,-591.63282331,0.00025205,2]
[336904210,1725238255787,-1683.85,0.00025205,2]
[336904212,1725238255797,-175.820974,0.00025205,7]
[336904213,1725238255806,-175.820974,0.00025205,7]
[336904215,1725238255816,-500.0,0.00025205,2]
[336904217,1725238255825,-1531.28,0.00025205,2]
[336904219,1725238255835,-755.98,0.00025205,2]
[336904221,1725238255844,-1326.94,0.00025205,2]
[336904223,1725238255854,-783.84,0.00025205,2]
[336904225,1725238255863,-1851.38,0.00025205,2]
[336904227,1725238255872,-500.0,0.00025205,2]
[336904229,1725238255883,-577.45,0.00025205,2]
[336904230,1725238255893,-2346.3,0.00025205,2]
[336904232,1725238255902,-501.97666087,0.00025205,2]
[336904234,1725238255913,-500.0,0.00025205,2]
[336904236,1725238255922,-1275.26,0.00025205,2]
[336904238,1725238255932,-885.94,0.00025205,2]
[336904240,1725238255944,-500.0,0.00025205,2]
[336904242,1725238255954,-500.0,0.00025205,2]
[336904243,1725238255964,-500.0,0.00025205,2]
[336904245,1725238255973,-1556.27,0.00025205,2]
[336904247,1725238255984,-1378.96,0.00025205,2]
[336904249,1725238255993,-3685.7,0.00025205,2]
[336904251,1725238256004,-584.28633893,0.00025205,2]
[336904253,1725238256014,-500.0,0.00025205,2]
[336904255,1725238256024,-500.0,0.00025205,2]
[336904257,1725238256033,-1504.16,0.00025205,2]
[336904259,1725238256043,-500.0,0.00025205,2]
[336904261,1725238256055,-1451.87,0.00025205,2]
[336904263,1725238256065,-500.0,0.00025205,2]
[336904265,1725238256074,-503.37387018,0.00025205,2]
[336904267,1725238256084,-500.0,0.00025205,2]
[336904284,1725238256233,-2428.69,0.00025205,2]
[336904286,1725238256242,-500.0,0.00025205,2]
[336904288,1725238256252,-455.819902,0.00025205,7]
[336904289,1725238256261,-455.819902,0.00025205,7]
[336904291,1725238256270,-455.819902,0.00025205,7]
[336904293,1725238256279,-1586.77,0.00025205,2]
[336904294,1725238256289,-500.0,0.00025205,2]
[336904295,1725238256298,-151.0,0.00025205,7]
[336904296,1725238256308,-151.0,0.00025205,7]
[336904297,1725238256317,-455.819902,0.00025205,7]
[336904298,1725238256326,-500.0,0.00025205,2]
[336904299,1725238256335,-455.819902,0.00025205,7]
[336904300,1725238256345,-455.819902,0.00025205,7]
[336904301,1725238256354,-1000.0,0.00025208,2]
[336904302,1725238256363,-3000.0,0.0002521,2]
[336904303,1725238256373,-1000.0,0.00025216,2]
[336904304,1725238256383,-3000.0,0.0002522,2]
[336904305,1725238256394,-1000.0,0.00025221,2]
[336904306,1725238256403,-3000.0,0.0002523,2]
[336904307,1725238256412,-1000.0,0.00025232,2]
[336904308,1725238256421,-150.0,0.00025236,2]
[336904309,1725238256430,-1000.0,0.00025237,2]
[336904310,1725238256439,-3000.0,0.0002524,2]
[336904311,1725238256448,-600.0,0.00025246,2]
[336904312,1725238256458,-382.07053845,0.00025247,2]
[336904313,1725238256467,-3000.0,0.0002525,2]
[336904314,1725238256477,-1000.0,0.00025255,2]
[336904315,1725238256486,-1000.0,0.00025256,2]
[336904317,1725238256496,-3000.0,0.0002526,2]
[336904319,1725238256505,-300.0,0.00025261,2]
[336904321,1725238256515,-1000.0,0.00025269,2]
[336904323,1725238256525,-3000.0,0.0002527,2]
[336904325,1725238256534,-150.0,0.00025273,2]
[336904327,1725238256544,-3000.0,0.0002528,2]
[336904329,1725238256553,-1000.0,0.00025282,2]
[336904331,1725238256562,-3000.0,0.0002529,2]
[336904333,1725238256572,-1000.0,0.00025297,2]
[336904335,1725238256581,-150.112233,0.000253,8]
[336904337,1725238256591,-3000.0,0.000253,2]
[336904339,1725238256600,-1000.0,0.00025308,2]
[336904341,1725238256613,-3000.0,0.0002531,2]
[336904343,1725238256622,-150.0,0.00025318,2]
[336904345,1725238256631,-522.0,0.00025318,2]
[336904347,1725238256640,-150.0,0.00025318,2]
[336904349,1725238256650,-3000.0,0.0002532,2]
[336904351,1725238256661,-3000.0,0.0002533,2]
[336904353,1725238256670,-151.0,0.00025331,3]
[336904355,1725238256679,-3000.0,0.0002534,2]
[336904357,1725238256690,-3000.0,0.0002535,2]
[336904359,1725238256700,-243.5034,0.00025352,2]
[336904361,1725238256709,-1000.0,0.00025354,2]
[336904363,1725238256719,-1000.0,0.0002536,2]
[336904365,1725238256728,-3000.0,0.0002536,2]
[336904367,1725238256738,-3000.0,0.0002537,2]
[336904369,1725238256748,-153.71,0.00025379,7]
[336904372,1725238256759,-154.68,0.00025379,7]
[336904374,1725238256768,-1000.0,0.00025379,2]
[336904376,1725238256778,-3000.0,0.0002538,2]
[336904378,1725238256789,-3000.0,0.0002539,2]
[336904380,1725238256798,-420.0,0.00025391,2]
[336904382,1725238256808,-150.112233,0.000254,10]
[336904384,1725238256817,-3000.0,0.000254,2]
[336904386,1725238256826,-175.820974,0.000254,7]
[336904388,1725238256836,-175.820974,0.000254,7]
[336904390,1725238256845,-3000.0,0.0002541,2]
[336904392,1725238256854,-3000.0,0.0002542,2]
[336904394,1725238256863,-3000.0,0.0002543,2]
[336904396,1725238256872,-1000.0,0.00025431,2]
[336904398,1725238256882,-1000.0,0.00025432,2]
[336904400,1725238256892,-1000.0,0.00025438,2]
[336904402,1725238256902,-3000.0,0.0002544,2]
[336904404,1725238256912,-3000.0,0.0002545,2]
[336904406,1725238256922,-3000.0,0.0002546,2]
[336904408,1725238256932,-151.0,0.0002546,7]
[336904410,1725238256942,-305.15850004,0.00025468,2]
[336904413,1725238256953,-1000.0,0.0002547,2]
[336904415,1725238256964,-3000.0,0.0002547,2]
[336904417,1725238256975,-1000.0,0.00025471,2]
[336904419,1725238256986,-150.01,0.00025478,2]
[336904421,1725238256996,-12006.29558884,0.00025478,2]
[336904423,1725238257006,-503.85,0.00025479,2]
[336904425,1725238257017,-500.0,0.00025479,2]
[336904428,1725238257028,-500.0,0.00025479,2]
[336904430,1725238257038,-554.81,0.00025479,2]
[336904432,1725238257049,-500.0,0.00025479,2]
[336904434,1725238257059,-500.0,0.00025479,2]
[336904436,1725238257068,-500.0,0.00025479,2]
[336904438,1725238257080,-500.0,0.00025479,2]
[336904441,1725238257090,-500.0,0.00025479,2]
[336904443,1725238257100,-500.0,0.00025479,2]
[336904445,1725238257110,-663.59,0.00025479,2]
[336904447,1725238257119,-500.0,0.00025479,2]
[336904449,1725238257128,-832.03,0.00025479,2]
[336904451,1725238257137,-500.0,0.00025479,2]
[336904453,1725238257147,-500.0,0.00025479,2]
[336904455,1725238257157,-500.0,0.00025479,2]
[336904457,1725238257167,-500.0,0.00025479,2]
[336904459,1725238257176,-500.0,0.00025479,2]
[336904461,1725238257187,-500.0,0.00025479,2]
[336904463,1725238257197,-734.8,0.00025479,2]
[336904465,1725238257207,-1247.0,0.00025479,2]
[336904467,1725238257216,-500.0,0.00025479,2]
[336904469,1725238257225,-700.44,0.00025479,2]
[336904471,1725238257235,-616.9427484,0.00025479,4]
[336904473,1725238257245,-500.0,0.00025479,2]
[336904475,1725238257254,-500.0,0.00025479,2]
[336904477,1725238257263,-500.0,0.00025479,2]
[336904479,1725238257274,-804.2,0.00025479,2]
[336904482,1725238257284,-661.53,0.00025479,2]
[336904484,1725238257295,-500.0,0.00025479,2]
[336904486,1725238257304,-500.0,0.00025479,2]
[336904488,1725238257313,-500.0,0.00025479,2]
[336904490,1725238257323,-500.0,0.00025479,2]
[336904492,1725238257332,-500.0,0.00025479,2]
[336904494,1725238257341,-500.0,0.00025479,2]
[336904496,1725238257351,-1086.69,0.00025479,2]
[336904498,1725238257360,-500.0,0.00025479,2]
[336904500,1725238257369,-500.0,0.00025479,2]
[336904502,1725238257378,-500.0,0.00025479,2]
[336904504,1725238257387,-500.0,0.00025479,2]
[336904506,1725238257397,-500.0,0.00025479,2]
[336904508,1725238257406,-500.0,0.00025479,2]
[336904510,1725238257415,-596.26,0.00025479,2]
[336904512,1725238257425,-500.0,0.00025479,2]
[336904513,1725238257434,-663.4,0.00025479,2]
[336904516,1725238257444,-500.0,0.00025479,2]
[336904518,1725238257454,-500.0,0.00025479,2]
[336904520,1725238257463,-500.0,0.00025479,2]
[336904522,1725238257473,-500.0,0.00025479,2]
[336904523,1725238257483,-369.62122667,0.00025479,2]
[336904526,1725238257492,-540.43,0.00025479,2]
[336904528,1725238257502,-500.0,0.00025479,2]
[336904530,1725238257511,-500.0,0.00025479,2]
[336904532,1725238257521,-500.0,0.00025479,2]
[336904534,1725238257531,-704.47,0.00025479,2]
[336904535,1725238257540,-500.0,0.00025479,2]
[336904537,1725238257549,-1062.16,0.00025479,2]
[336904539,1725238257559,-500.0,0.00025479,2]
[336904541,1725238257568,-500.0,0.00025479,2]
[336904543,1725238257578,-500.0,0.00025479,2]
[336904545,1725238257587,-893.99,0.00025479,2]
[336904547,1725238257597,-500.0,0.00025479,2]
[336904550,1725238257613,-500.0,0.00025479,2]
[336904552,1725238257623,-500.0,0.00025479,2]
[336904554,1725238257632,-788.12,0.00025479,2]
[336904556,1725238257643,-284.92661686,0.00025479,2]
[336904558,1725238257654,-500.0,0.00025479,2]
[336904560,1725238257663,-500.0,0.00025479,2]
[336904562,1725238257673,-500.0,0.00025479,2]
[336904564,1725238257683,-500.0,0.00025479,2]
[336904566,1725238257694,-500.0,0.00025479,2]
[336904568,1725238257704,-544.78,0.00025479,2]
[336904570,1725238257714,-262.95464729,0.00025479,2]
[336904572,1725238257724,-500.0,0.00025479,2]
[336904574,1725238257735,-500.0,0.00025479,2]
[336904576,1725238257746,-500.0,0.00025479,2]
[336904578,1725238257755,-500.0,0.00025479,2]
[336904580,1725238257765,-500.0,0.00025479,2]
[336904582,1725238257776,-500.0,0.00025479,2]
[336904584,1725238257786,-500.0,0.00025479,2]
[336904586,1725238257797,-500.0,0.00025479,2]
[336904588,1725238257807,-507.05321203,0.00025479,2]
[336904590,1725238257817,-500.0,0.00025479,2]
[336904592,1725238257827,-500.0,0.00025479,2]
[336904594,1725238257837,-500.0,0.00025479,2]
[336904596,1725238257847,-500.0,0.00025479,2]
[336904598,1725238257857,-500.0,0.00025479,2]
[336904600,1725238257866,-500.0,0.00025479,2]
[336904602,1725238257877,-500.0,0.00025479,2]
[336904604,1725238257887,-500.0,0.00025479,2]
[336904606,1725238257897,-500.0,0.00025479,2]
[336904608,1725238257907,-500.0,0.00025479,2]
[336904610,1725238257917,-500.0,0.00025479,2]
[336904612,1725238257927,-4274.77,0.00025479,2]
[336904614,1725238257937,-753.48,0.00025479,2]
[336904616,1725238257946,-500.0,0.00025479,2]
[336904619,1725238257956,-855.51,0.00025479,2]
[336904621,1725238257966,-500.0,0.00025479,2]
[336904623,1725238257977,-1379.69,0.00025479,2]
[336904625,1725238257987,-500.0,0.00025479,2]
[336904627,1725238257997,-500.0,0.00025479,2]
[336904629,1725238258006,-645.07,0.00025479,2]
[336904631,1725238258015,-528.88123642,0.00025479,2]
[336904633,1725238258025,-500.0,0.00025479,2]
[336904635,1725238258035,-500.0,0.00025479,2]
[336904636,1725238258045,-500.0,0.00025479,2]
[336904638,1725238258055,-500.0,0.00025479,2]
[336904640,1725238258065,-500.0,0.00025479,2]
[336904642,1725238258074,-500.0,0.00025479,2]
[336904644,1725238258084,-500.0,0.00025479,2]
[336904646,1725238258094,-500.0,0.00025479,2]
[336904648,1725238258103,-500.0,0.00025479,2]
[336904650,1725238258114,-605.88,0.00025479,2]
[336904652,1725238258124,-583.4,0.00025479,2]
[336904654,1725238258134,-501.75064935,0.00025479,2]
[336904656,1725238258144,-500.0,0.00025479,2]
[336904658,1725238258153,-500.0,0.00025479,2]
[336904660,1725238258162,-500.0,0.00025479,2]
[336904662,1725238258172,-504.35,0.00025479,2]
[336904664,1725238258182,-500.0,0.00025479,2]
[336904666,1725238258192,-500.0,0.00025479,2]
[336904668,1725238258202,-500.0,0.00025479,2]
[336904670,1725238258211,-500.0,0.00025479,2]
[336904672,1725238258221,-500.0,0.00025479,2]
[336904675,1725238258235,-500.0,0.00025479,2]
[336904676,1725238258244,-1303.55,0.00025479,2]
[336904678,1725238258253,-500.0,0.00025479,2]
[336904680,1725238258263,-500.0,0.00025479,2]
[336904682,1725238258273,-500.0,0.00025479,2]
[336904684,1725238258284,-500.0,0.00025479,2]
[336904686,1725238258293,-500.0,0.00025479,2]
[336904688,1725238258303,-675.88,0.00025479,2]
[336904691,1725238258313,-500.0,0.00025479,2]
[336904693,1725238258323,-500.0,0.00025479,2]
[336904695,1725238258332,-1063.58,0.00025479,2]
[336904697,1725238258342,-1013.87,0.00025479,2]
[336904699,1725238258352,-500.0,0.00025479,2]
[336904701,1725238258362,-500.0,0.00025479,2]
[336904703,1725238258372,-500.0,0.00025479,2]
[336904705,1725238258382,-500.0,0.00025479,2]
[336904707,1725238258392,-500.0,0.00025479,2]
[336904709,1725238258401,-500.0,0.00025479,2]
[336904711,1725238258411,-500.0,0.00025479,2]
[336904713,1725238258421,-500.0,0.00025479,2]
[336904715,1725238258431,-500.0,0.00025479,2]
[336904717,1725238258441,-500.0,0.00025479,2]
[336904719,1725238258451,-500.0,0.00025479,2]
[336904721,1725238258460,-500.0,0.00025479,2]
[336904723,1725238258470,-500.0,0.00025479,2]
[336904725,1725238258479,-500.0,0.00025479,2]
[336904727,1725238258490,-500.0,0.00025479,2]
[336904729,1725238258499,-816.84,0.00025479,2]
[336904731,1725238258509,-592.12,0.00025479,2]
[336904733,1725238258519,-500.0,0.00025479,2]
[336904735,1725238258528,-500.0,0.00025479,2]
[336904737,1725238258538,-500.0,0.00025479,2]
[336904739,1725238258548,-838.77,0.00025479,2]
[336904741,1725238258557,-500.0,0.00025479,2]
[336904743,1725238258566,-500.0,0.00025479,2]
[336904745,1725238258576,-500.0,0.00025479,2]
[336904747,1725238258586,-785.94,0.00025479,2]
[336904749,1725238258595,-500.0,0.00025479,2]
[336904751,1725238258604,-1768.12,0.00025479,2]
[336904758,1725238258663,-500.0,0.00025479,2]
[336904760,1725238258672,-2282.25,0.00025479,2]
[336904762,1725238258682,-500.0,0.00025479,2]
[336904764,1725238258692,-500.0,0.00025479,2]
[336904766,1725238258702,-730.25,0.00025479,2]
[336904768,1725238258711,-500.0,0.00025479,2]
[336904770,1725238258722,-2059.63,0.00025479,2]
[336904772,1725238258734,-500.0,0.00025479,2]
[336904774,1725238258743,-500.0,0.00025479,2]
[336904776,1725238258754,-500.0,0.00025479,2]
[336904777,1725238258764,-2371.27,0.00025479,2]
[336904778,1725238258774,-604.26,0.00025479,2]
[336904779,1725238258783,-500.0,0.00025479,2]
[336904780,1725238258793,-500.0,0.00025479,2]
[336904781,1725238258803,-500.0,0.00025479,2]
[336904782,1725238258812,-500.0,0.00025479,2]
[336904783,1725238258822,-500.0,0.00025479,2]
[336904785,1725238258832,-500.0,0.00025479,2]
[336904787,1725238258842,-500.0,0.00025479,2]
[336904789,1725238258852,-500.0,0.00025479,2]
[336904791,1725238258861,-500.0,0.00025479,2]
[336904793,1725238258871,-500.0,0.00025479,2]
[336904795,1725238258881,-500.0,0.00025479,2]
[336904797,1725238258890,-500.0,0.00025479,2]
[336904799,1725238258900,-2564.05,0.00025479,2]
[336904801,1725238258909,-1129.63,0.00025479,2]
[336904804,1725238258919,-917.22,0.00025479,2]
[336904805,1725238258928,-601.33,0.00025479,2]
[336904807,1725238258938,-575.98,0.00025479,2]
[336904809,1725238258947,-13288.77872021,0.00025479,2]
[336904851,1725238259335,-28.83995566,0.000228,5]
[336904854,1725238259351,-121.27227734,0.000228,5]